fUST/lending_fUST_20250806
["ID","MTS","AMOUNT","RATE_DAILY","PERIOD"]
[377447834,1754415047952,-460.0,0.00027671,2]
[377447836,1754415047961,-460.0,0.00027671,2]
[377447838,1754415047970,-460.0,0.00027671,2]
[377447840,1754415047980,-460.0,0.00027671,2]
[377447842,1754415047989,-460.0,0.00027671,2]
[377447844,1754415047998,-463.62839765,0.00027671,2]
[377447846,1754415048007,-170.63,0.00027672,15]
[377447848,1754415048017,-153.14,0.00027672,15]
[377447850,1754415048029,-150.0,0.00027673,3]
[377447852,1754415048039,-150.0,0.00027673,5]
[377447854,1754415048048,-153.63,0.00027673,15]
[377447857,1754415048058,-170.62,0.00027684,15]
[377447859,1754415048071,-153.04,0.00027684,15]
[377447861,1754415048082,-170.62,0.00027686,15]
[377447863,1754415048091,-153.16,0.00027686,15]
[377447865,1754415048105,-1314.74,0.00027718,3]
[377447867,1754415048114,-5498.78,0.00027718,3]
[377447869,1754415048124,-2749.4,0.00027718,3]
[377447871,1754415048134,-1374.7,0.00027718,3]
[377447873,1754415048143,-687.34,0.00027718,3]
[377447875,1754415048153,-343.68,0.00027718,3]
[377447877,1754415048162,-153.25,0.00027761,15]
[377447879,1754415048171,-170.63,0.00027772,15]
[377447881,1754415048180,-153.14,0.00027772,15]
[377447883,1754415048189,-153.63,0.00027773,15]
[377447886,1754415048199,-250.530879,0.00027773,7]
[377447888,1754415048209,-153.04,0.00027784,15]
[377447890,1754415048218,-153.16,0.00027786,15]
[377447892,1754415048228,-151.0,0.000278,12]
[377447894,1754415048237,-160.0,0.00027848,2]
[377447896,1754415048247,-885.76930001,0.00027858,2]
[377447898,1754415048256,-153.25,0.00027861,15]
[377447900,1754415048266,-153.14,0.00027872,15]
[377447902,1754415048275,-153.63,0.00027873,15]
[377447904,1754415048285,-153.04,0.00027884,15]
[377447906,1754415048295,-153.16,0.00027886,15]
[377447908,1754415048305,-500.0,0.00027921,5]
[377447910,1754415048314,-1000.0,0.00027921,5]
[377447912,1754415048325,-735.82297017,0.00027921,5]
[377447914,1754415048334,-1000.0,0.00027921,2]
[377447916,1754415048343,-250.0,0.00027921,5]
[377447918,1754415048352,-505.56393485,0.00027921,5]
[377447920,1754415048361,-521.3620583,0.00027921,5]
[377447922,1754415048370,-150.83960042,0.00027921,5]
[377447924,1754415048381,-500.0,0.00027921,5]
[377447926,1754415048390,-1000.0,0.00027921,5]
[377447928,1754415048400,-1000.0,0.00027921,5]
[377447930,1754415048409,-1000.0,0.00027921,5]
[377447932,1754415048418,-505.17341474,0.00027921,5]
[377447934,1754415048428,-643.90803113,0.00027921,2]
[377447936,1754415048438,-460.0,0.00027945,2]
[377447938,1754415048448,-460.0,0.00027945,2]
[377447940,1754415048457,-571.67,0.00027945,2]
[377447942,1754415048467,-460.0,0.00027945,2]
[377447944,1754415048476,-460.0,0.00027945,2]
[377447947,1754415048486,-466.27022632,0.00027945,2]
[377447948,1754415048495,-460.0,0.00027945,2]
[377447951,1754415048505,-460.0,0.00027945,2]
[377447953,1754415048514,-500.0,0.00027945,2]
[377447955,1754415048523,-986.09,0.00027945,2]
[377447957,1754415048533,-460.0,0.00027945,2]
[377447959,1754415048542,-241.99047369,0.00027945,2]
[377447961,1754415048551,-3352.64,0.00027945,2]
[377447976,1754415048683,-460.0,0.00027945,2]
[377447979,1754415048693,-460.0,0.00027945,2]
[377447981,1754415048703,-460.0,0.00027945,2]
[377447983,1754415048713,-565.26,0.00027945,2]
[377447985,1754415048722,-464.26118888,0.00027945,2]
[377447987,1754415048731,-460.0,0.00027945,2]
[377447989,1754415048741,-500.0,0.00027945,5]
[377447991,1754415048751,-460.0,0.00027945,2]
[377447993,1754415048760,-460.0,0.00027945,2]
[377447995,1754415048770,-460.0,0.00027945,2]
[377447997,1754415048780,-460.0,0.00027945,2]
[377447999,1754415048790,-460.0,0.00027945,2]
[377448001,1754415048799,-1270.03,0.00027945,2]
[377448003,1754415048808,-460.0,0.00027945,2]
[377448005,1754415048818,-460.0,0.00027945,2]
[377448007,1754415048827,-460.0,0.00027945,2]
[377448009,1754415048837,-460.0,0.00027945,2]
[377448011,1754415048847,-460.0,0.00027945,2]
[377448013,1754415048856,-1043.48,0.00027945,2]
[377448015,1754415048865,-460.0,0.00027945,2]
[377448017,1754415048874,-460.0,0.00027945,2]
[377448019,1754415048883,-460.0,0.00027945,2]
[377448021,1754415048893,-460.0,0.00027945,2]
[377448023,1754415048902,-469.96996308,0.00027945,2]
[377448025,1754415048911,-468.73380115,0.00027945,2]
[377448027,1754415048920,-460.0,0.00027945,2]
[377448029,1754415048929,-460.0,0.00027945,2]
[377448031,1754415048939,-460.0,0.00027945,2]
[377448033,1754415048949,-460.0,0.00027945,2]
[377448036,1754415048959,-460.0,0.00027945,2]
[377448038,1754415048968,-460.0,0.00027945,2]
[377448040,1754415048977,-467.86488049,0.00027945,2]
[377448042,1754415048987,-460.0,0.00027945,2]
[377448044,1754415048996,-460.0,0.00027945,2]
[377448046,1754415049006,-409.48710097,0.00027945,2]
[377448048,1754415049016,-460.0,0.00027945,2]
[377448050,1754415049028,-460.0,0.00027945,2]
[377448052,1754415049038,-186.16841269,0.00027945,2]
[377448054,1754415049048,-460.0,0.00027945,2]
[377448056,1754415049057,-466.72147132,0.00027945,2]
[377448058,1754415049067,-460.0,0.00027945,2]
[377448060,1754415049077,-460.0,0.00027945,2]
[377448062,1754415049086,-460.0,0.00027945,2]
[377448064,1754415049099,-464.76636282,0.00027945,2]
[377448066,1754415049109,-460.0,0.00027945,2]
[377448068,1754415049118,-669.24,0.00027945,2]
[377448070,1754415049128,-460.0,0.00027945,2]
[377448073,1754415049137,-460.0,0.00027945,2]
[377448075,1754415049147,-460.0,0.00027945,2]
[377448077,1754415049156,-460.0,0.00027945,2]
[377448079,1754415049165,-460.0,0.00027945,2]
[377448081,1754415049175,-460.0,0.00027945,2]
[377448083,1754415049184,-463.93860934,0.00027945,2]
[377448085,1754415049194,-460.0,0.00027945,2]
[377448087,1754415049204,-460.0,0.00027945,2]
[377448089,1754415049213,-460.0,0.00027945,2]
[377448091,1754415049223,-460.0,0.00027945,2]
[377448093,1754415049232,-460.0,0.00027945,2]
[377448095,1754415049242,-460.0,0.00027945,2]
[377448097,1754415049252,-460.0,0.00027945,2]
[377448099,1754415049261,-460.0,0.00027945,2]
[377448101,1754415049270,-569.20099727,0.00027945,2]
[377448103,1754415049281,-460.0,0.00027945,2]
[377448105,1754415049290,-460.0,0.00027945,2]
[377448107,1754415049299,-460.0,0.00027945,2]
[377448109,1754415049309,-460.0,0.00027945,2]
[377448111,1754415049318,-661.32,0.00027945,2]
[377448113,1754415049328,-460.0,0.00027945,2]
[377448115,1754415049347,-460.0,0.00027945,2]
[377448117,1754415049356,-460.0,0.00027945,2]
[377448119,1754415049366,-460.0,0.00027945,2]
[377448121,1754415049375,-460.0,0.00027945,2]
[377448123,1754415049384,-460.0,0.00027945,2]
[377448125,1754415049394,-460.0,0.00027945,2]
[377448127,1754415049403,-460.0,0.00027945,2]
[377448129,1754415049413,-460.0,0.00027945,2]
[377448131,1754415049422,-460.0,0.00027945,2]
[377448134,1754415049432,-846.11,0.00027945,2]
[377448136,1754415049441,-460.0,0.00027945,2]
[377448138,1754415049451,-460.0,0.00027945,2]
[377448140,1754415049460,-500.0,0.00027945,2]
[377448142,1754415049469,-460.0,0.00027945,2]
[377448144,1754415049478,-460.0,0.00027945,2]
[377448146,1754415049488,-460.0,0.00027945,2]
[377448148,1754415049498,-460.0,0.00027945,2]
[377448150,1754415049508,-156.37748146,0.00027945,2]
[377448152,1754415049517,-468.02407211,0.00027945,2]
[377448154,1754415049528,-460.0,0.00027945,2]
[377448156,1754415049537,-3818.35,0.00027945,2]
[377448158,1754415049547,-460.0,0.00027945,2]
[377448160,1754415049557,-2389.53,0.00027945,2]
[377448162,1754415049566,-198.4496647,0.00027945,2]
[377448164,1754415049576,-535.36,0.00027945,2]
[377448166,1754415049585,-460.0,0.00027945,2]
[377448168,1754415049595,-460.0,0.00027945,2]
[377448170,1754415049604,-460.0,0.00027945,2]
[377448172,1754415049613,-56223.51,0.00027945,2]
[377448174,1754415049623,-460.0,0.00027945,2]
[377448176,1754415049632,-460.0,0.00027945,2]
[377448178,1754415049642,-460.0,0.00027945,2]
[377448180,1754415049652,-465.12546042,0.00027945,2]
[377448182,1754415049661,-2020.1,0.00027945,2]
[377448184,1754415049670,-1687.27,0.00027945,2]
[377448186,1754415049679,-460.0,0.00027945,2]
[377448188,1754415049688,-460.0,0.00027945,2]
[377448191,1754415049699,-460.0,0.00027945,2]
[377448193,1754415049708,-253.53563757,0.00027945,2]
[377448195,1754415049718,-460.0,0.00027945,2]
[377448197,1754415049728,-487.65,0.00027945,2]
[377448199,1754415049738,-460.0,0.00027945,2]
[377448201,1754415049747,-462.53435128,0.00027945,2]
[377448203,1754415049757,-460.0,0.00027945,2]
[377448205,1754415049766,-460.0,0.00027945,2]
[377448207,1754415049775,-460.0,0.00027945,2]
[377448209,1754415049785,-1004.19542819,0.00027945,2]
[377448211,1754415049795,-460.0,0.00027945,2]
[377448213,1754415049804,-465.66280924,0.00027945,2]
[377448215,1754415049814,-460.0,0.00027945,2]
[377448217,1754415049825,-460.0,0.00027945,2]
[377448219,1754415049834,-460.0,0.00027945,2]
[377448221,1754415049843,-460.0,0.00027945,2]
[377448223,1754415049852,-460.0,0.00027945,2]
[377448225,1754415049862,-460.0,0.00027945,2]
[377448227,1754415049872,-516.11,0.00027945,2]
[377448229,1754415049881,-460.0,0.00027945,2]
[377448231,1754415049893,-460.0,0.00027945,2]
[377448233,1754415049903,-467.36162004,0.00027945,2]
[377448235,1754415049913,-460.0,0.00027945,2]
[377448238,1754415049923,-469.55798324,0.00027945,2]
[377448239,1754415049933,-460.0,0.00027945,2]
[377448242,1754415049943,-467.97800243,0.00027945,2]
[377448244,1754415049953,-460.0,0.00027945,2]
[377448245,1754415049962,-460.0,0.00027945,2]
[377448248,1754415049972,-460.0,0.00027945,2]
[377448249,1754415049982,-460.0,0.00027945,2]
[377448252,1754415049992,-646.27,0.00027945,2]
[377448254,1754415050003,-460.0,0.00027945,2]
[377448256,1754415050013,-460.0,0.00027945,2]
[377448258,1754415050024,-928.38,0.00027945,2]
[377448260,1754415050036,-1122.11,0.00027945,2]
[377448262,1754415050045,-1784.15,0.00027945,2]
[377448264,1754415050055,-479.72083621,0.00027945,2]
[377448266,1754415050066,-460.0,0.00027945,2]
[377448268,1754415050076,-1060.85,0.00027945,2]
[377448270,1754415050085,-460.0,0.00027945,2]
[377448272,1754415050094,-460.0,0.00027945,2]
[377448274,1754415050107,-460.0,0.00027945,2]
[377448276,1754415050117,-464.91017918,0.00027945,2]
[377448279,1754415050127,-460.0,0.00027945,2]
[377448281,1754415050137,-460.0,0.00027945,2]
[377448283,1754415050146,-460.0,0.00027945,2]
[377448285,1754415050156,-460.0,0.00027945,2]
[377448287,1754415050166,-701.38,0.00027945,2]
[377448289,1754415050175,-460.0,0.00027945,2]
[377448291,1754415050185,-464.57537908,0.00027945,2]
[377448293,1754415050194,-460.0,0.00027945,2]
[377448295,1754415050204,-1093.8,0.00027945,2]
[377448297,1754415050213,-460.0,0.00027945,2]
[377448299,1754415050223,-460.0,0.00027945,2]
[377448301,1754415050232,-525.29,0.00027945,2]
[377448303,1754415050242,-460.0,0.00027945,2]
[377448305,1754415050251,-460.0,0.00027945,2]
[377448307,1754415050261,-1137.67,0.00027945,2]
[377448309,1754415050271,-460.0,0.00027945,2]
[377448311,1754415050280,-466.04450768,0.00027945,2]
[377448313,1754415050289,-460.0,0.00027945,2]
[377448315,1754415050298,-460.0,0.00027945,2]
[377448317,1754415050308,-442.35901382,0.00027945,2]
[377448319,1754415050318,-2833.3,0.00027945,2]
[377448321,1754415050328,-460.0,0.00027945,2]
[377448323,1754415050338,-460.0,0.00027945,2]
[377448325,1754415050347,-460.0,0.00027945,2]
[377448327,1754415050356,-460.0,0.00027945,2]
[377448329,1754415050365,-460.0,0.00027945,2]
[377448331,1754415050375,-460.0,0.00027945,2]
[377448333,1754415050384,-460.0,0.00027945,2]
[377448335,1754415050393,-460.0,0.00027945,2]
[377448337,1754415050402,-460.0,0.00027945,2]
[377448339,1754415050412,-460.0,0.00027945,2]
[377448341,1754415050421,-460.0,0.00027945,2]
[377448343,1754415050430,-460.0,0.00027945,2]
[377448345,1754415050439,-460.0,0.00027945,2]
[377448347,1754415050449,-1926.76,0.00027945,2]
[377448349,1754415050458,-460.0,0.00027945,2]
[377448351,1754415050467,-460.0,0.00027945,2]
[377448353,1754415050477,-460.0,0.00027945,2]
[377448355,1754415050486,-520.81580791,0.00027945,2]
[377448357,1754415050496,-460.0,0.00027945,2]
[377448359,1754415050505,-1135.24,0.00027945,2]
[377448360,1754415050514,-1547.47,0.00027945,2]
[377448361,1754415050524,-460.0,0.00027945,2]
[377448362,1754415050533,-460.0,0.00027945,2]
[377448363,1754415050543,-675.85,0.00027945,2]
[377448364,1754415050552,-467.30123933,0.00027945,2]
[377448365,1754415050562,-460.0,0.00027945,2]
[377448366,1754415050573,-500.0,0.00027945,2]
[377448367,1754415050581,-460.0,0.00027945,2]
[377448368,1754415050590,-501.70518215,0.00027945,2]
[377448369,1754415050599,-862.88,0.00027945,2]
[377448370,1754415050609,-462.3,0.00027945,2]
[377448371,1754415050618,-828.49,0.00027945,2]
[377448372,1754415050627,-460.0,0.00027945,2]
[377448376,1754415050636,-460.0,0.00027945,2]
[377448378,1754415050675,-460.0,0.00027945,2]
[377448380,1754415050684,-460.0,0.00027945,2]
[377448382,1754415050693,-460.0,0.00027945,2]
[377448384,1754415050703,-460.0,0.00027945,2]
[377448386,1754415050712,-460.0,0.00027945,2]
[377448388,1754415050721,-460.0,0.00027945,2]
[377448390,1754415050730,-460.0,0.00027945,2]
[377448392,1754415050739,-460.0,0.00027945,2]
[377448394,1754415050748,-460.0,0.00027945,2]
[377448396,1754415050758,-460.0,0.00027945,2]
[377448398,1754415050767,-460.0,0.00027945,2]
[377448400,1754415050776,-460.0,0.00027945,2]
[377448402,1754415050787,-827.63,0.00027945,2]
[377448404,1754415050798,-460.0,0.00027945,2]
[377448406,1754415050807,-460.0,0.00027945,2]
[377448408,1754415050817,-460.0,0.00027945,2]
[377448410,1754415050827,-460.0,0.00027945,2]
[377448412,1754415050836,-1381.82,0.00027945,2]
[377448414,1754415050846,-460.0,0.00027945,2]
[377448416,1754415050855,-460.0,0.00027945,2]
[377448418,1754415050864,-693.76,0.00027945,2]
[377448420,1754415050874,-460.0,0.00027945,2]
[377448422,1754415050883,-1179.1,0.00027945,2]
[377448424,1754415050893,-676.55,0.00027945,2]
[377448426,1754415050902,-471.73,0.00027945,2]
[377448428,1754415050912,-460.0,0.00027945,2]
[377448430,1754415050921,-460.0,0.00027945,2]
[377448432,1754415050930,-460.0,0.00027945,2]
[377448434,1754415050939,-460.0,0.00027945,2]
[377448436,1754415050949,-1188.0,0.00027945,2]
[377448438,1754415050960,-460.0,0.00027945,2]
[377448440,1754415050969,-460.0,0.00027945,2]
[377448442,1754415050979,-464.23388928,0.00027945,2]
[377448444,1754415050987,-460.0,0.00027945,2]
[377448446,1754415050996,-153.25,0.00027961,15]
[377448448,1754415051006,-153.14,0.00027972,15]
[377448450,1754415051016,-500.0,0.00027973,5]
[377448451,1754415051027,-300.0,0.00027973,5]
[377448453,1754415051036,-153.63,0.00027973,15]
[377448455,1754415051045,-153.04,0.00027984,15]
[377448457,1754415051054,-153.16,0.00027986,15]
[377448459,1754415051065,-151.0,0.00028,12]
[377448461,1754415051075,-216.4206905,0.00028,3]
[377448463,1754415051084,-603.27402565,0.00028016,5]
[377448465,1754415051094,-2000.0,0.00028016,5]
[377448468,1754415051107,-2000.0,0.00028016,5]
[377448469,1754415051117,-2000.0,0.00028016,5]
[377448471,1754415051127,-160.0,0.00028044,2]
[377448473,1754415051137,-160.0,0.00028044,2]
[377448476,1754415051147,-160.0,0.00028044,2]
[377448477,1754415051156,-153.25,0.00028061,15]
[377448479,1754415051166,-153.14,0.00028072,15]
[377448481,1754415051176,-153.63,0.00028073,15]
[377448483,1754415051186,-153.04,0.00028084,15]
[377448485,1754415051196,-153.16,0.00028086,15]
[377448488,1754415051205,-527.3554621,0.00028088,2]
[377448490,1754415051214,-312.16666667,0.00028088,2]
[377448491,1754415051224,-160.0,0.00028088,2]
[377448493,1754415051233,-231.72586818,0.00028088,2]
[377448495,1754415051242,-12655.02535889,0.00028088,2]
[377448497,1754415051251,-215.21874788,0.00028088,2]
[377448499,1754415051260,-160.0,0.00028088,2]
[377448501,1754415051269,-461.15695721,0.00028088,2]
[377448503,1754415051278,-160.0,0.00028088,2]
[377448505,1754415051287,-160.0,0.00028088,2]
[377448507,1754415051297,-842.25606042,0.00028088,2]
[377448509,1754415051306,-160.0,0.00028088,2]
[377448511,1754415051316,-216.4206905,0.00028088,2]
[377448513,1754415051327,-160.0,0.00028088,2]
[377448515,1754415051336,-1000.0,0.000281,2]
[377448517,1754415051345,-153.25,0.00028161,15]
[377448519,1754415051355,-153.14,0.00028172,15]
[377448521,1754415051364,-153.63,0.00028173,15]
[377448523,1754415051373,-153.04,0.00028184,15]
[377448525,1754415051383,-370.33555827,0.00028219,2]
[377448528,1754415051394,-561.40315,0.00028219,2]
[377448530,1754415051405,-571.67,0.00028219,2]
[377448532,1754415051416,-460.0,0.00028219,2]
[377448534,1754415051425,-460.0,0.00028219,2]
[377448536,1754415051434,-460.0,0.00028219,2]
[377448538,1754415051444,-500.0,0.00028219,2]
[377448540,1754415051453,-986.09,0.00028219,2]
[377448541,1754415051463,-460.0,0.00028219,2]
[377448544,1754415051472,-3352.64,0.00028219,2]
[377448546,1754415051482,-460.0,0.00028219,2]
[377448548,1754415051492,-460.0,0.00028219,2]
[377448550,1754415051501,-565.26,0.00028219,2]
[377448552,1754415051511,-466.824326,0.00028219,2]
[377448554,1754415051520,-1270.03,0.00028219,2]
[377448556,1754415051530,-460.0,0.00028219,2]
[377448558,1754415051539,-460.0,0.00028219,2]
[377448560,1754415051549,-1043.48,0.00028219,2]
[377448562,1754415051558,-460.0,0.00028219,2]
[377448564,1754415051569,-532.99793358,0.00028219,2]
[377448566,1754415051578,-460.0,0.00028219,2]
[377448568,1754415051588,-460.0,0.00028219,2]
[377448570,1754415051598,-460.0,0.00028219,2]
[377448572,1754415051607,-460.0,0.00028219,2]
[377448574,1754415051617,-460.0,0.00028219,2]
[377448576,1754415051627,-460.0,0.00028219,2]
[377448579,1754415051637,-464.94060883,0.00028219,2]
[377448581,1754415051646,-460.0,0.00028219,2]
[377448583,1754415051655,-460.0,0.00028219,2]
[377448585,1754415051665,-460.0,0.00028219,2]
[377448587,1754415051675,-460.0,0.00028219,2]
[377448589,1754415051684,-669.24,0.00028219,2]
[377448591,1754415051693,-460.0,0.00028219,2]
[377448593,1754415051702,-460.0,0.00028219,2]
[377448595,1754415051711,-463.7050291,0.00028219,2]
[377448597,1754415051721,-346.9539371,0.00028219,2]
[377448599,1754415051731,-460.0,0.00028219,2]
[377448601,1754415051740,-460.0,0.00028219,2]
[377448603,1754415051749,-460.0,0.00028219,2]
[377448605,1754415051759,-460.0,0.00028219,2]
[377448607,1754415051768,-460.0,0.00028219,2]
[377448609,1754415051778,-467.15786822,0.00028219,2]
[377448611,1754415051787,-661.32,0.00028219,2]
[377448613,1754415051796,-460.0,0.00028219,2]
[377448615,1754415051805,-460.0,0.00028219,2]
[377448617,1754415051814,-460.0,0.00028219,2]
[377448619,1754415051824,-460.0,0.00028219,2]
[377448621,1754415051833,-460.0,0.00028219,2]
[377448623,1754415051843,-460.0,0.00028219,2]
[377448625,1754415051852,-460.0,0.00028219,2]
[377448627,1754415051861,-460.0,0.00028219,2]
[377448629,1754415051871,-460.0,0.00028219,2]
[377448631,1754415051882,-846.11,0.00028219,2]
[377448633,1754415051891,-460.0,0.00028219,2]
[377448635,1754415051901,-460.0,0.00028219,2]
[377448637,1754415051911,-500.0,0.00028219,2]
[377448639,1754415051920,-460.0,0.00028219,2]
[377448641,1754415051930,-464.16573078,0.00028219,2]
[377448643,1754415051939,-460.0,0.00028219,2]
[377448645,1754415051949,-3818.35,0.00028219,2]
[377448647,1754415051958,-2389.53,0.00028219,2]
[377448650,1754415051968,-460.0,0.00028219,2]
[377448652,1754415051978,-535.36,0.00028219,2]
[377448654,1754415051988,-460.0,0.00028219,2]
[377448656,1754415051997,-460.0,0.00028219,2]
[377448658,1754415052007,-460.0,0.00028219,2]
[377448660,1754415052016,-56223.51,0.00028219,2]
[377448662,1754415052030,-460.0,0.00028219,2]
[377448664,1754415052040,-460.0,0.00028219,2]
[377448666,1754415052049,-460.0,0.00028219,2]
[377448668,1754415052059,-2020.1,0.00028219,2]
[377448670,1754415052070,-1687.27,0.00028219,2]
[377448672,1754415052079,-460.0,0.00028219,2]
[377448674,1754415052089,-460.0,0.00028219,2]
[377448676,1754415052102,-460.0,0.00028219,2]
[377448678,1754415052112,-460.0,0.00028219,2]
[377448680,1754415052122,-487.65,0.00028219,2]
[377448682,1754415052132,-460.0,0.00028219,2]
[377448684,1754415052142,-460.0,0.00028219,2]
[377448686,1754415052151,-460.0,0.00028219,2]
[377448688,1754415052161,-460.0,0.00028219,2]
[377448690,1754415052170,-467.14859624,0.00028219,2]
[377448692,1754415052180,-460.0,0.00028219,2]
[377448694,1754415052190,-417.83898524,0.00028219,2]
[377448696,1754415052199,-460.0,0.00028219,2]
[377448698,1754415052209,-351.4726924,0.00028219,2]
[377448700,1754415052218,-460.0,0.00028219,2]
[377448702,1754415052228,-460.0,0.00028219,2]
[377448704,1754415052238,-460.0,0.00028219,2]
[377448706,1754415052248,-465.50919245,0.00028219,2]
[377448708,1754415052257,-460.0,0.00028219,2]
[377448710,1754415052267,-460.0,0.00028219,2]
[377448712,1754415052277,-460.0,0.00028219,2]
[377448715,1754415052287,-460.0,0.00028219,2]
[377448717,1754415052296,-460.0,0.00028219,2]
[377448719,1754415052306,-646.27,0.00028219,2]
[377448721,1754415052316,-460.79732474,0.00028219,2]
[377448723,1754415052326,-460.0,0.00028219,2]
[377448725,1754415052335,-928.38,0.00028219,2]
[377448726,1754415052345,-1122.11,0.00028219,2]
[377448728,1754415052354,-1784.15,0.00028219,2]
[377448731,1754415052364,-460.0,0.00028219,2]
[377448733,1754415052373,-1060.85,0.00028219,2]
[377448735,1754415052383,-460.0,0.00028219,2]
[377448737,1754415052393,-467.64373844,0.00028219,2]
[377448739,1754415052403,-460.0,0.00028219,2]
[377448741,1754415052413,-460.0,0.00028219,2]
[377448743,1754415052422,-460.0,0.00028219,2]
[377448745,1754415052432,-460.0,0.00028219,2]
[377448747,1754415052442,-701.38,0.00028219,2]
[377448749,1754415052452,-460.0,0.00028219,2]
[377448751,1754415052461,-460.0,0.00028219,2]
[377448753,1754415052471,-460.0,0.00028219,2]
[377448755,1754415052481,-525.29,0.00028219,2]
[377448757,1754415052490,-460.0,0.00028219,2]
[377448759,1754415052499,-460.0,0.00028219,2]
[377448761,1754415052509,-1137.67,0.00028219,2]
[377448763,1754415052519,-469.23708437,0.00028219,2]
[377448765,1754415052528,-460.0,0.00028219,2]
[377448767,1754415052538,-460.0,0.00028219,2]
[377448769,1754415052547,-2833.3,0.00028219,2]
[377448771,1754415052557,-460.0,0.00028219,2]
[377448773,1754415052566,-460.0,0.00028219,2]
[377448775,1754415052577,-460.0,0.00028219,2]
[377448777,1754415052587,-469.80249116,0.00028219,2]
[377448779,1754415052598,-460.0,0.00028219,2]
[377448781,1754415052607,-460.0,0.00028219,2]
[377448783,1754415052617,-460.0,0.00028219,2]
[377448785,1754415052628,-460.0,0.00028219,2]
[377448787,1754415052638,-460.0,0.00028219,2]
[377448789,1754415052647,-460.0,0.00028219,2]
[377448791,1754415052657,-467.99244875,0.00028219,2]
[377448793,1754415052666,-460.0,0.00028219,2]
[377448795,1754415052676,-460.0,0.00028219,2]
[377448797,1754415052687,-1926.76,0.00028219,2]
[377448799,1754415052696,-460.0,0.00028219,2]
[377448801,1754415052706,-460.0,0.00028219,2]
[377448802,1754415052715,-460.0,0.00028219,2]
[377448803,1754415052725,-460.0,0.00028219,2]
[377448804,1754415052734,-1135.24,0.00028219,2]
[377448805,1754415052745,-1547.47,0.00028219,2]
[377448806,1754415052755,-470.68753946,0.00028219,2]
[377448807,1754415052765,-460.0,0.00028219,2]
[377448808,1754415052776,-675.85,0.00028219,2]
[377448809,1754415052786,-460.0,0.00028219,2]
[377448810,1754415052795,-460.0,0.00028219,2]
[377448811,1754415052806,-862.88,0.00028219,2]
[377448812,1754415052816,-462.3,0.00028219,2]
[377448813,1754415052827,-828.49,0.00028219,2]
[377448814,1754415052837,-225.23990959,0.00028219,2]
[377448815,1754415052846,-460.0,0.00028219,2]
[377448816,1754415052856,-474.73155514,0.00028219,2]
[377448817,1754415052866,-460.0,0.00028219,2]
[377448818,1754415052876,-460.0,0.00028219,2]
[377448819,1754415052885,-460.0,0.00028219,2]
[377448820,1754415052895,-460.0,0.00028219,2]
[377448821,1754415052905,-460.0,0.00028219,2]
[377448822,1754415052914,-460.0,0.00028219,2]
[377448823,1754415052924,-467.15771033,0.00028219,2]
[377448824,1754415052934,-460.0,0.00028219,2]